lending/lending_fUSD_20240112
["ID","MTS","AMOUNT","RATE_DAILY","PERIOD"]
[311432052,1705098632282,-157.54,0.00022186,2]
[311432053,1705098632291,-3358.46,0.00022223,2]
[311432054,1705098632304,-1958.21,0.00022223,2]
[311432055,1705098632313,-152.71,0.00022223,2]
[311432056,1705098632322,-157.54,0.00022257,2]
[311432057,1705098632331,-151.78018546,0.00022315,2]
[311432058,1705098632341,-2080.3,0.00022315,2]
[311432059,1705098632350,-157.54,0.00022328,2]
[311432060,1705098632359,-157.54,0.00022398,2]
[311432061,1705098632368,-154.47,0.00022412,2]
[311432062,1705098632378,-11825.1607812,0.00022425,2]
[311432063,1705098632387,-157.54,0.00022469,2]
[311432064,1705098632397,-504924.79064027,0.000225,2]
[311432065,1705098632407,-152.71,0.00022532,2]
[311432066,1705098632416,-717.28,0.00022539,2]
[311432067,1705098632425,-157.54,0.0002254,2]
[311432068,1705098632434,-157.54,0.00022611,2]
[311432069,1705098632444,-14245.1187327,0.00022622,2]
[311432070,1705098632453,-717.31,0.00022625,2]
[311432071,1705098632462,-736.5,0.00022628,2]
[311432072,1705098632471,-709.59,0.0002263,2]
[311432073,1705098632480,-713.97,0.00022632,2]
[311432074,1705098632490,-179.62985832,0.00022634,2]
[311432075,1705098632499,-203.65680147,0.00022634,2]
[311432076,1705098632509,-894.0340027,0.00022634,2]
[311432077,1705098632518,-727.21,0.00022635,2]
[311432078,1705098632527,-729.53,0.00022636,2]
[311432079,1705098632537,-581.91,0.00022636,2]
[311432080,1705098632547,-499.99,0.00022636,2]
[311432081,1705098632559,-706.44,0.00022636,2]
[311432082,1705098632569,-713.95,0.00022636,2]
[311432083,1705098632579,-722.38,0.0002264,2]
[311432085,1705098632588,-157.54,0.00022682,2]
[311432087,1705098632598,-157.54,0.00022753,2]
[311432089,1705098632608,-556.0053,0.00022801,2]
[311432091,1705098632618,-157.54,0.00022824,2]
[311432093,1705098632627,-152.71,0.0002284,2]
[311432095,1705098632637,-717.44,0.00022884,2]
[311432097,1705098632646,-715.19,0.00022886,2]
[311432099,1705098632655,-709.77,0.00022889,2]
[311432101,1705098632664,-718.89,0.00022891,2]
[311432103,1705098632674,-456.96,0.00022891,2]
[311432106,1705098632683,-722.86,0.00022892,2]
[311432109,1705098632692,-157.54,0.00022895,2]
[311432112,1705098632701,-721.49,0.00022895,2]
[311432115,1705098632711,-724.65,0.00022896,2]
[311432118,1705098632721,-710.66,0.00022897,2]
[311432121,1705098632730,-713.77,0.00022897,2]
[311432123,1705098632738,-730.82,0.00022898,2]
[311432126,1705098632748,-5000.0,0.00022898,2]
[311432129,1705098632758,-733.93,0.00022898,2]
[311432132,1705098632767,-250.0,0.000229,2]
[311432134,1705098632776,-74184.125,0.00022901,2]
[311432138,1705098632786,-1000.0,0.00022901,2]
[311432139,1705098632795,-500.0,0.00022901,2]
[311432142,1705098632807,-632.29842345,0.00022915,2]
[311432143,1705098632816,-187.82117893,0.00022931,2]
[311432145,1705098632825,-153.76,0.00022982,2]
[311432147,1705098632834,-154.47,0.00022998,2]
[311432149,1705098632843,-151.7801854,0.00023,2]
[311432151,1705098632852,-933.03463795,0.00023,2]
[311432153,1705098632861,-284.12,0.00023,2]
[311432155,1705098632871,-152.71,0.00023149,2]
[311432157,1705098632880,-729.41,0.00023156,2]
[311432159,1705098632889,-722.47,0.00023217,2]
[311432161,1705098632898,-730.33,0.00023287,2]
[311432163,1705098632908,-697.90161946,0.00023287,2]
[311432165,1705098632918,-234.98930555,0.00023287,2]
[311432167,1705098632928,-152.71,0.00023458,2]
[311432169,1705098632937,-717.28,0.00023518,2]
[311432171,1705098632947,-154.47,0.00023585,2]
[311432173,1705098632956,-151.7801854,0.00023684,2]
[311432175,1705098632965,-152.71,0.00023766,2]
[311432177,1705098632976,-49216.0,0.000238,2]
[311432179,1705098632986,-4022.0,0.000238,2]
[311432181,1705098632996,-153.76,0.00023816,2]
[311432183,1705098633006,-430.99724455,0.00024,2]
[311432185,1705098633014,-878.81,0.00024126,2]
[311432187,1705098633023,-154.47,0.00024171,2]
[311432189,1705098633035,-210.0,0.00024244,2]
[311432191,1705098633044,-168.05,0.00024297,2]
[311432193,1705098633057,-151.7801854,0.00024369,2]
[311432195,1705098633067,-421.16,0.00024413,2]
[311432197,1705098633076,-717.28,0.00024496,2]
[311432199,1705098633088,-415.71,0.00024512,2]
[311432201,1705098633097,-151.48,0.00024521,2]
[311432203,1705098633106,-153.76,0.00024649,2]
[311432205,1705098633115,-250.0,0.00024658,2]
[311432221,1705098633124,-154.47,0.00024758,2]
[311432222,1705098633298,-283.21108211,0.00025,2]
[311432223,1705098633309,-200.0,0.00025,2]
[311432224,1705098633318,-303.07385153,0.00025,2]
[311432225,1705098633327,-201.78427875,0.00025,2]
[311432226,1705098633336,-252.954417,0.00025,2]
[311432227,1705098633346,-167.16432493,0.00025,2]
[311432228,1705098633356,-1069.51142143,0.00025,2]
[311432229,1705098633365,-733.47420287,0.00025,2]
[311432230,1705098633375,-350.0,0.00025,3]
[311432231,1705098633384,-151.7801854,0.00025054,2]
[311432232,1705098633394,-168.05,0.00025299,2]
[311432233,1705098633403,-632.29842341,0.00025341,2]
[311432234,1705098633413,-154.47,0.00025344,2]
[311432235,1705098633423,-187.82117888,0.00025355,2]
[311432236,1705098633433,-415.71,0.00025405,2]
[311432237,1705098633442,-717.28,0.00025475,2]
[311432238,1705098633451,-153.76,0.00025482,2]
[311432239,1705098633461,-151.7801854,0.00025738,2]
[311432240,1705098633470,-154.47,0.00025931,2]
[311432241,1705098633480,-150.0,0.00026079,2]
[311432242,1705098633490,-159.64,0.00026173,2]
[311432243,1705098633499,-415.71,0.00026297,2]
[311432244,1705098633508,-168.05,0.00026302,2]
[311432245,1705098633518,-153.76,0.00026316,2]
[311432246,1705098633527,-151.7801854,0.00026423,2]
[311432247,1705098633537,-717.28,0.00026453,2]
[311432248,1705098633547,-7498.4,0.00026575,2]
[311432249,1705098633560,-6901.16,0.00026575,2]
[311432250,1705098633570,-293.0,0.00026668,2]
[311432251,1705098633581,-421.16,0.00026676,2]
[311432252,1705098633591,-878.81,0.00026807,2]
[311432253,1705098633601,-156.56,0.00026985,2]
[311432254,1705098633610,-12283.43506918,0.00027,2]
[311432255,1705098633620,-415.58939019,0.00027,2]
[311432256,1705098633630,-400.0,0.00027,3]
[311432257,1705098633639,-151.7801854,0.00027108,2]
[311432258,1705098633649,-415.71,0.0002719,2]
[311432259,1705098633658,-156.56,0.00027199,2]
[311432260,1705098633667,-151.48,0.00027245,2]
[311432261,1705098633677,-168.05,0.00027304,2]
[311432262,1705098633686,-205.0,0.00027395,2]
[311432263,1705098633696,-5281.42063444,0.00027397,6]
[311432264,1705098633705,-265.6479652,0.00027397,2]
[311432265,1705098633714,-155.0,0.00027397,2]
[311432266,1705098633724,-2124.37,0.00027397,2]
[311432267,1705098633733,-2124.37,0.00027397,2]
[311432268,1705098633742,-2124.37,0.00027397,2]
[311432269,1705098633751,-2124.37,0.00027397,2]
[311432270,1705098633761,-2124.37,0.00027397,2]
[311432271,1705098633771,-2124.37,0.00027397,2]
[311432272,1705098633780,-2124.37,0.00027397,2]
[311432273,1705098633789,-2124.37,0.00027397,2]
[311432274,1705098633798,-2124.37,0.00027397,2]
[311432275,1705098633810,-2124.37,0.00027397,2]
[311432276,1705098633819,-250.0,0.00027397,2]
[311432277,1705098633828,-4314.51,0.00027397,2]
[311432278,1705098633837,-15268.79,0.00027397,2]
[311432279,1705098633847,-5687.92805834,0.000274,2]
[311432280,1705098633856,-250.0,0.000274,2]
[311432281,1705098633865,-156.56,0.00027413,2]
[311432282,1705098633874,-717.28,0.00027432,2]
[311432283,1705098633885,-4314.51,0.00027556,2]
[311432284,1705098633895,-19678.0,0.00027594,2]
[311432285,1705098633904,-4632.472,0.00027594,2]
[311432286,1705098633913,-4097.995,0.00027594,2]
[311432287,1705098633922,-634.913,0.00027594,2]
[311432288,1705098633932,-5566.0,0.00027594,2]
[311432289,1705098633940,-2275.785,0.00027594,2]
[311432290,1705098633950,-544.218,0.00027594,2]
[311432291,1705098633959,-1028.0,0.00027594,2]
[311432292,1705098633969,-256.349,0.00027594,2]
[311432293,1705098633980,-156.56,0.00027628,2]
[311432294,1705098633989,-4314.51,0.00027714,2]
[311432295,1705098633999,-632.29842341,0.00027768,3]
[311432296,1705098634008,-187.82117888,0.00027779,3]
[311432297,1705098634018,-151.7801854,0.00027792,2]
[311432298,1705098634027,-156.56,0.00027842,2]
[311432299,1705098634036,-4314.51,0.00027872,2]
[311432300,1705098634046,-1143.82641546,0.00027995,2]
[311432301,1705098634058,-155.42281929,0.00027995,2]
[311432302,1705098634068,-155.0,0.00027997,2]
[311432303,1705098634077,-1473.73534993,0.00027997,2]
[311432304,1705098634086,-687.85574589,0.00028,2]
[311432305,1705098634095,-4314.51,0.0002803,2]
[311432306,1705098634105,-200.0,0.00028041,3]
[311432307,1705098634114,-200.0,0.00028041,3]
[311432308,1705098634123,-156.56,0.00028056,2]
[311432309,1705098634132,-415.71,0.00028083,2]
[311432310,1705098634141,-4314.51,0.00028189,2]
[311432311,1705098634151,-156.56,0.0002827,2]
[311432312,1705098634160,-168.05,0.00028307,2]
[311432313,1705098634170,-4314.51,0.00028347,2]
[311432314,1705098634179,-717.28,0.0002841,2]
[311432315,1705098634188,-151.7801854,0.00028477,2]
[311432316,1705098634198,-4314.51,0.00028505,2]
[311432317,1705098634207,-4314.51,0.00028664,2]
[311432318,1705098634216,-205.0,0.00028753,4]
[311432319,1705098634226,-155.0,0.00028767,2]
[311432320,1705098634235,-1652.0,0.00028779,5]
[311432321,1705098634244,-4314.51,0.00028822,2]
[311432322,1705098634254,-169.41,0.0002886,2]
[311432323,1705098634264,-421.16,0.0002894,2]
[311432324,1705098634273,-415.71,0.00028975,2]
[311432325,1705098634282,-155.12473008,0.00029,2]
[311432326,1705098634291,-450.0,0.00029,3]
[311432327,1705098634300,-151.7801854,0.00029161,2]
[311432328,1705098634312,-291.14,0.00029172,2]
[311432329,1705098634321,-4166.0,0.00029172,2]
[311432330,1705098634331,-2901.0,0.00029172,2]
[311432331,1705098634340,-9116.48015352,0.00029189,2]
[311432332,1705098634350,-717.28,0.00029389,2]
[311432333,1705098634359,-862.71007426,0.000294,2]
[311432334,1705098634368,-862.71007413,0.000294,2]
[311432335,1705098634378,-862.71007413,0.000294,2]
[311432336,1705098634387,-862.71007413,0.000294,2]
[311432337,1705098634397,-862.71007413,0.000294,2]
[311432338,1705098634406,-862.71007413,0.000294,2]
[311432339,1705098634415,-862.71007413,0.000294,2]
[311432340,1705098634425,-862.71007413,0.000294,2]
[311432341,1705098634434,-862.71007413,0.000294,2]
[311432342,1705098634443,-862.71007413,0.000294,2]
[311432343,1705098634453,-878.81,0.00029487,2]
[311432344,1705098634463,-19105.65798421,0.000295,2]
[311432345,1705098634472,-299.56963255,0.000295,3]
[311432346,1705098634482,-14118.5285,0.00029694,2]
[311432347,1705098634491,-209.0,0.00029696,2]
[311432348,1705098634501,-4829.14892655,0.00029697,2]
[311432349,1705098634510,-500.0,0.00029765,2]
[311432350,1705098634520,-5247.76636263,0.00029792,2]
[311432351,1705098634530,-200.19348135,0.00029794,2]
[311432352,1705098634540,-21344.50843671,0.00029796,2]
[311432353,1705098634549,-158.9013791,0.00029796,2]
[311432354,1705098634560,-1957.52550198,0.00029796,2]
[311432355,1705098634571,-155.0,0.00029797,2]
[311432356,1705098634580,-2145.26738332,0.00029798,2]
[311432357,1705098634590,-265.80824792,0.000298,2]
[311432358,1705098634600,-151.7801854,0.00029846,2]
[311432359,1705098634610,-197.73160494,0.00029899,2]
[311432360,1705098634620,-5902.92300327,0.000299,2]
[311432361,1705098634630,-2000.0,0.000299,3]
[311432362,1705098634640,-1240.18612466,0.0002992,2]
[311432363,1705098634650,-151.48,0.0002997,2]
[311432364,1705098634659,-160.21250991,0.00029996,2]
[311432365,1705098634668,-286.83973017,0.00029996,2]
[311432366,1705098634678,-1055.77828974,0.00029996,2]
[311432367,1705098634687,-155.38567074,0.00029996,2]
[311432368,1705098634696,-233.75877013,0.00029996,2]
[311432369,1705098634705,-300.79591785,0.00029997,2]
[311432370,1705098634714,-251.17673965,0.00029997,2]
[311432371,1705098634723,-1138.9944831,0.00029997,2]
[311432372,1705098634733,-2317.09975572,0.00029997,2]
[311432373,1705098634742,-176.66678125,0.00029997,2]
[311432374,1705098634752,-155.0,0.00029997,2]
[311432375,1705098634761,-1261.32575555,0.00029997,2]
[311432376,1705098634771,-155.17341309,0.00029997,2]
[311432377,1705098634780,-155.29235094,0.00029997,2]
[311432378,1705098634789,-219.34485506,0.00029997,2]
[311432379,1705098634799,-331.97769118,0.00029997,2]
[311432380,1705098634810,-757.38163137,0.00029997,2]
[311432381,1705098634819,-715.83784001,0.00029997,2]
[311432382,1705098634828,-1830.39542682,0.00029997,2]
[311432383,1705098634837,-3613.76151731,0.00029998,2]
[311432384,1705098634846,-698.57587295,0.00029998,2]
[311432385,1705098634856,-1482.58994778,0.00029999,2]
[311432386,1705098634865,-2229.03781201,0.00029999,2]
[311432387,1705098634874,-286.33384578,0.00029999,2]
[311432388,1705098634883,-11602.12050021,0.00029999,2]
[311432389,1705098634892,-662.5044547,0.00029999,2]
[311432390,1705098634901,-6851.60015863,0.0003,4]
[311432391,1705098634911,-18999.30236546,0.0003,4]
[311432392,1705098634920,-4590.51115751,0.0003,2]
[311432393,1705098634929,-155.0,0.0003,2]
[311432394,1705098634938,-596.34244499,0.0003,4]
[311432395,1705098634948,-1177.07132484,0.0003,2]
[311432396,1705098634957,-8826.98630773,0.0003,4]
[311432397,1705098634967,-308452.81074364,0.0003,4]
[311432398,1705098634978,-517.92701806,0.0003,4]
[311432399,1705098634987,-500.4145884,0.0003,2]
[311432400,1705098634996,-581.79448282,0.0003,2]
[311432401,1705098635006,-15782.20891687,0.0003,3]
[311432402,1705098635015,-1475.20435008,0.00030027,2]
[311432403,1705098635024,-500.0,0.00030106,2]
[311432404,1705098635034,-205.0,0.00030112,6]
[311432405,1705098635043,-153.84,0.00030137,2]
[311432406,1705098635054,-155.0,0.00030137,2]
[311432407,1705098635066,-632.29842341,0.00030194,4]
[311432408,1705098635075,-187.82117888,0.00030203,4]
[311432409,1705098635084,-1240.18612466,0.00030348,2]
[311432410,1705098635093,-717.28,0.00030367,2]
[311432411,1705098635102,-1475.20435008,0.00030401,2]
[311432412,1705098635112,-1000.0,0.000305,2]
[311432413,1705098635121,-1500.0,0.00030509,2]
[311432414,1705098635130,-151.7801854,0.00030531,2]
[311432415,1705098635139,-1475.20435008,0.0003057,2]
[311432416,1705098635149,-1240.18612466,0.00030647,2]
[311432417,1705098635158,-12580.36532251,0.0003069,2]
[311432418,1705098635169,-3000.0,0.0003069,2]
[311432419,1705098635178,-150.0,0.00030724,2]
[311432420,1705098635187,-1500.0,0.00030727,2]
[311432421,1705098635196,-150.0,0.00030733,2]
[311432422,1705098635205,-300.0,0.00030739,2]
[311432423,1705098635215,-150.0,0.00030742,2]
[311432424,1705098635224,-150.0,0.00030743,2]
[311432425,1705098635233,-150.0,0.00030744,2]
[311432426,1705098635243,-150.0,0.00030746,2]
[311432427,1705098635252,-200.0,0.00030751,3]
[311432428,1705098635261,-500.0,0.00030752,2]
[311432429,1705098635270,-300.0,0.0003076,2]
[311432430,1705098635279,-300.0,0.0003076,2]
[311432431,1705098635288,-150.0,0.00030761,2]
[311432432,1705098635298,-150.0,0.00030763,2]
[311432433,1705098635309,-150.0,0.00030764,2]
[311432434,1705098635319,-150.46768086,0.00030773,2]
[311432435,1705098635328,-1500.0,0.00030785,2]
[311432436,1705098635337,-1500.0,0.00030791,2]
[311432437,1705098635347,-2115.78436096,0.00030792,2]
[311432438,1705098635506,-2808.89718581,0.000308,2]
[311432439,1705098635516,-150.0,0.00030803,2]
[311432440,1705098635525,-150.0,0.00030807,2]
[311432441,1705098635535,-150.0,0.00030808,2]
[311432442,1705098635545,-5902.92300323,0.00030809,2]
[311432443,1705098635554,-150.0,0.00030812,2]
[311432444,1705098635566,-1500.0,0.00030817,2]
[311432445,1705098635576,-150.0,0.00030818,2]
[311432446,1705098635585,-1500.0,0.00030818,2]
[311432447,1705098635595,-150.0,0.0003082,2]
[311432448,1705098635604,-150.0,0.00030821,2]
[311432449,1705098635613,-150.0,0.00030821,2]
[311432450,1705098635623,-1500.0,0.00030825,2]
[311432451,1705098635632,-150.0,0.00030827,2]
[311432452,1705098635641,-1500.0,0.00030831,2]
[311432453,1705098635651,-150.0,0.00030833,2]
[311432454,1705098635660,-150.0,0.00030834,2]
[311432455,1705098635669,-150.0,0.00030838,2]
[311432456,1705098635678,-150.0,0.0003084,2]
[311432457,1705098635688,-200.0,0.00030845,2]
[311432458,1705098635697,-1500.0,0.00030846,2]
[311432459,1705098635707,-1500.0,0.0003085,2]
[311432460,1705098635716,-1475.20435008,0.0003085,2]
[311432461,1705098635726,-351.44104708,0.00030857,2]
[311432462,1705098635735,-150.0,0.00030857,2]
[311432463,1705098635744,-150.0,0.00030858,2]
[311432464,1705098635753,-150.0,0.00030858,2]
[311432465,1705098635763,-1500.0,0.00030861,2]
[311432466,1705098635772,-150.0,0.00030865,2]
[311432467,1705098635781,-150.0,0.00030868,2]
[311432468,1705098635791,-150.0,0.00030874,2]
[311432469,1705098635801,-150.0,0.00030875,2]
[311432470,1705098635812,-150.0,0.00030875,2]
[311432471,1705098635822,-1240.18612466,0.0003088,2]
[311432472,1705098635830,-150.0,0.00030884,2]
[311432473,1705098635839,-1500.0,0.00030885,2]
[311432474,1705098635849,-150.0,0.00030892,2]
[311432475,1705098635858,-150.0,0.00030893,2]
[311432476,1705098635868,-312.64251927,0.00030893,2]
[311432477,1705098635877,-150.0,0.00030895,2]
[311432478,1705098635886,-150.0,0.00030898,2]
[311432479,1705098635896,-173.27324037,0.000309,2]
[311432480,1705098635905,-159.2606285,0.000309,2]
[311432481,1705098635914,-150.0,0.00030904,2]
[311432482,1705098635924,-1500.0,0.00030914,2]
[311432483,1705098635933,-150.0,0.00030916,2]
[311432484,1705098635942,-150.0,0.00030917,2]
[311432485,1705098635952,-150.0,0.00030923,2]
[311432486,1705098635961,-150.0,0.00030927,2]
[311432487,1705098635971,-150.0,0.00030931,2]
[311432488,1705098635979,-150.0,0.00030931,2]
[311432489,1705098635989,-150.0,0.00030932,2]
[311432490,1705098635998,-150.0,0.00030936,2]
[311432491,1705098636008,-150.0,0.00030937,2]
[311432492,1705098636018,-150.0,0.00030946,2]
[311432493,1705098636027,-150.0,0.00030949,2]
[311432494,1705098636037,-150.0,0.00030951,2]
[311432495,1705098636047,-300.0,0.00030962,2]
[311432496,1705098636059,-150.0,0.00030964,2]
[311432497,1705098636068,-150.0,0.00030965,2]
[311432498,1705098636078,-150.0,0.00030966,2]
[311432499,1705098636087,-1500.0,0.00030968,2]
[311432500,1705098636096,-150.0,0.00030973,2]
[311432501,1705098636105,-150.0,0.00030974,2]
[311432502,1705098636114,-150.0,0.00030976,2]
[311432503,1705098636125,-150.0,0.00030977,2]
[311432504,1705098636134,-150.0,0.00030977,2]
[311432505,1705098636144,-150.0,0.00030984,2]
[311432506,1705098636153,-3292.32224499,0.00030999,2]
[311432507,1705098636163,-150.01,0.00030999,2]
[311432508,1705098636173,-17598.12156109,0.00031,2]
[311432509,1705098636182,-155.0,0.00031,4]
[311432510,1705098636192,-2000.0,0.00031,2]
[311432511,1705098636201,-200.0,0.00031,2]
[311432512,1705098636211,-500.0,0.00031,3]
[311432513,1705098636220,-1153.526877,0.00031,2]
[311432514,1705098636230,-150.0,0.00031,2]
[311432515,1705098636239,-815.2136113,0.00031,2]
[311432516,1705098636249,-256.48,0.00031,7]
[311432517,1705098636259,-3000.0,0.00031,2]
[311432518,1705098636269,-3000.0,0.00031,2]
[311432519,1705098636278,-3000.0,0.00031,2]
[311432520,1705098636288,-865.830047,0.00031,2]
[311432521,1705098636297,-4000.0,0.00031,2]
[311432522,1705098636307,-153.84,0.0003105,2]
[311432523,1705098636317,-3000.0,0.0003108,2]
[311432524,1705098636327,-159.64,0.00031096,2]
[311432525,1705098636337,-315.70937546,0.00031137,7]
[311432526,1705098636346,-421.16,0.00031204,2]
[311432527,1705098636355,-151.7801854,0.00031215,2]
[311432528,1705098636365,-158.19607509,0.0003131,2]
[311432529,1705098636375,-717.28,0.00031346,2]
[311432530,1705098636385,-1240.18612466,0.00031405,2]
[311432531,1705098636395,-205.0,0.0003147,9]
[311432532,1705098636405,-1475.20435008,0.00031473,2]
[311432533,1705098636416,-500.0,0.000315,2]
[311432534,1705098636426,-235.73,0.00031507,2]
[311432535,1705098636436,-155.0,0.00031507,2]
[311432536,1705098636446,-1240.18612466,0.00031548,2]
[311432537,1705098636456,-151.74,0.00031644,2]
[311432538,1705098636472,-55555.0,0.000317,3]
[311432539,1705098636495,-3000.0,0.0003171,2]
[311432540,1705098636512,-1475.20435008,0.00031713,2]
[311432541,1705098636536,-5902.92300323,0.00031718,3]
[311432542,1705098636553,-323223.38305754,0.00031799,2]
[311432546,1705098637926,-540.6156531,0.00031799,2]
[311432547,1705098637938,-1124.72457423,0.00031799,2]
[311432548,1705098637974,-410.62500001,0.00031799,2]
[311432549,1705098637998,-10547.81713317,0.00031799,2]
[311432550,1705098638010,-1754.10585164,0.00031799,2]
[311432551,1705098638022,-413.11707566,0.00031799,2]
[311432552,1705098638033,-2542.42520263,0.00031799,2]
[311432553,1705098638044,-429.24948495,0.00031799,2]
[311432554,1705098638055,-390.72,0.00031799,2]
[311432555,1705098638070,-20755.0,0.00031799,2]
[311432556,1705098638089,-2104.43120711,0.00031799,2]
[311432558,1705098638208,-862.71007413,0.000294,2]
[311432559,1705098638217,-41697.53992587,0.00031799,2]
[311432561,1705098638229,-264062.34522086,0.00031799,2]
[311432563,1705098638241,-1046.5,0.00031799,2]
[311432564,1705098638252,-317.51373483,0.00031799,2]
[311432629,1705098641471,-201.54,0.00022815,2]
[311432630,1705098641482,-201.54,0.00024185,2]
[311432632,1705098641492,-433.963,0.00027594,2]
[311432634,1705098641501,-995.0,0.00027594,2]
[311432636,1705098641510,-1931.0,0.00027594,2]
[311432638,1705098641520,-436.957,0.000294,2]
[311432640,1705098641532,-425.75307413,0.000294,2]
[311432641,1705098641541,-1049.483,0.00030594,2]
[311432643,1705098641551,-2271.59949238,0.00031797,2]
[311432645,1705098641562,-38272.16443348,0.00031799,2]
[311432647,1705098641573,-7976.59337912,0.00031799,2]
[311432649,1705098641584,-1254.79354,0.00031799,2]
[311432660,1705098641706,-294.86,0.00031799,2]
[311432662,1705098641718,-2880.05252838,0.00031799,2]
[311432664,1705098641730,-2587.11444898,0.00031799,2]
[311432666,1705098641742,-292.0921017,0.00031799,2]
[311432668,1705098641753,-2095.768675,0.00031799,2]
[311432670,1705098641771,-464.27462384,0.00031799,2]
[311432672,1705098641783,-1743.292,0.00031799,2]
[311432675,1705098641795,-1690.49330512,0.00031799,2]
[311432677,1705098641809,-46909.96005953,0.00031799,2]
[311432679,1705098641823,-52533.44309383,0.00031799,2]
[311432681,1705098641832,-1970.28528663,0.000318,3]
[311432683,1705098641844,-2475.66949071,0.000318,3]
[311432686,1705098641871,-7160.23924305,0.000318,3]
[311432688,1705098641883,-967.84452218,0.000318,3]
[311432690,1705098641898,-1160.09867486,0.000318,3]
[311432692,1705098641911,-3350.56,0.000318,3]
[311432694,1705098641923,-16478.22452257,0.000318,3]
[311432696,1705098641935,-2028.3597189,0.000318,3]
[311432703,1705098642006,-11802.55108076,0.000318,3]
[311432705,1705098642018,-173117.68810013,0.000318,3]
[311432721,1705098642187,-533.086788,0.000318,3]
[311432724,1705098642199,-294.75,0.000318,3]
[311432726,1705098642211,-1207.83,0.000318,3]
[311432728,1705098642223,-1845.86374314,0.000318,3]
[311432730,1705098642236,-574.08589794,0.000318,3]
[311432732,1705098642247,-2418.07367203,0.000318,3]
[311432735,1705098642260,-803.82,0.000318,3]
[311432745,1705098642362,-1648.79103856,0.000318,3]
[311432747,1705098642379,-29727.26215954,0.000318,3]
[311432749,1705098642389,-1240.18612468,0.00031852,2]
[311432751,1705098642399,-151.7801854,0.000319,2]
[311432753,1705098642409,-1475.20435008,0.00031957,2]
[311432755,1705098642419,-153.84,0.00031963,2]
[311432757,1705098642429,-100000.0,0.00032,2]
[311432759,1705098642438,-13056.05779594,0.00032,4]
[311432761,1705098642448,-297.49420797,0.00032,4]
[311432763,1705098642459,-1956.55820431,0.00032,2]
[311432765,1705098642469,-155.93679021,0.00032,4]
[311432767,1705098642479,-150.0,0.00032,2]
[311432769,1705098642489,-150.0,0.00032,2]
[311432771,1705098642499,-41330.0,0.00032,4]
[311432773,1705098642509,-1000.0,0.00032,2]
[311432775,1705098642519,-2459.549998,0.000321,2]
[311432777,1705098642529,-878.81,0.00032168,2]
[311432779,1705098642539,-717.28,0.00032324,2]
[311432781,1705098642549,-3000.0,0.0003234,2]
[311432783,1705098642559,-160.0,0.00032499,3]
[311432784,1705098642572,-282.03376479,0.00032548,2]
[311432786,1705098642582,-632.29842341,0.00032621,6]
[311432788,1705098642591,-5902.92300323,0.00032627,4]
[311432790,1705098642602,-187.82117888,0.00032628,6]
[311432792,1705098642612,-151.48,0.00032694,2]
[311432794,1705098642623,-205.0,0.00032829,11]
[311432796,1705098642636,-153.84,0.00032877,2]
[311432798,1705098642647,-741.15,0.00032877,15]
[311432800,1705098642657,-3000.0,0.0003296,2]
[311432801,1705098642668,-159.26062841,0.00032974,2]
[311432802,1705098642677,-100000.0,0.00033,3]
[311432803,1705098642688,-49219.83954882,0.00033,2]
[311432804,1705098642698,-5000.0,0.00033,10]
[311432805,1705098642708,-550.0,0.00033,3]
[311432806,1705098642718,-1000.0,0.00033,2]